fUST/lending_fUST_20250601
["ID","MTS","AMOUNT","RATE_DAILY","PERIOD"]
[363585525,1748776259939,-333.0,0.00023014,7]
[363585526,1748776259950,-151.0,0.000231,7]
[363585527,1748776259960,-434.88,0.000231,7]
[363585528,1748776259971,-817.55931874,0.00023176,8]
[363585529,1748776259981,-4092.81,0.000233,2]
[363585530,1748776259991,-1285.102013,0.00023324,3]
[363585531,1748776260001,-151.0,0.00023328,7]
[363585532,1748776260010,-9859.40490574,0.00023329,2]
[363585533,1748776260020,-5000.0,0.00023329,2]
[363585534,1748776260029,-5000.0,0.00023329,2]
[363585535,1748776260039,-5000.0,0.00023329,2]
[363585536,1748776260050,-5000.0,0.00023329,2]
[363585537,1748776260060,-45109.22,0.00023359,6]
[363585538,1748776260070,-30391.77,0.00023359,6]
[363585539,1748776260079,-155.6687316,0.0002337,2]
[363585540,1748776260089,-481.97,0.000234,7]
[363585541,1748776260099,-817.55931874,0.00023417,9]
[363585542,1748776260109,-1021.56,0.00023586,2]
[363585543,1748776260119,-500.0,0.00023625,7]
[363585544,1748776260130,-817.55931874,0.00023659,9]
[363585545,1748776260141,-151.0,0.00023659,2]
[363585546,1748776260153,-151.0,0.00023659,2]
[363585547,1748776260163,-151.0,0.000237,6]
[363585548,1748776260174,-2000.0,0.000237,2]
[363585549,1748776260183,-152.99,0.000237,31]
[363585550,1748776260194,-152.99,0.000237,31]
[363585551,1748776260204,-152.99,0.000237,31]
[363585552,1748776260213,-152.99,0.000237,31]
[363585553,1748776260224,-152.99,0.000237,31]
[363585554,1748776260233,-152.99,0.000237,31]
[363585555,1748776260244,-152.99,0.000237,31]
[363585556,1748776260254,-152.99,0.000237,31]
[363585557,1748776260263,-152.99,0.000237,31]
[363585558,1748776260273,-152.99,0.000237,31]
[363585559,1748776260288,-152.99,0.000237,31]
[363585560,1748776260298,-152.99,0.000237,31]
[363585561,1748776260308,-152.99,0.000237,31]
[363585562,1748776260317,-152.99,0.000237,31]
[363585563,1748776260327,-152.99,0.000237,31]
[363585564,1748776260336,-150.0,0.000237,5]
[363585565,1748776260347,-2710.5241537,0.000237,2]
[363585566,1748776260356,-500.0,0.00023761,9]
[363585567,1748776260367,-151.0,0.00023773,7]
[363585568,1748776260377,-5000.52795924,0.0002378,7]
[363585569,1748776260387,-207.0,0.0002379,2]
[363585570,1748776260396,-151.0,0.0002379,7]
[363585571,1748776260406,-500.85666673,0.0002379,9]
[363585572,1748776260415,-201.0,0.0002379,9]
[363585573,1748776260425,-323912.76204914,0.000238,2]
[363585574,1748776260435,-68459.85969033,0.000238,2]
[363585575,1748776261530,-430.0,0.00016438,2]
[363585576,1748776261540,-430.0,0.00016712,2]
[363585577,1748776261550,-430.0,0.00016986,2]
[363585578,1748776261560,-2710.52415366,0.00023711,2]
[363585579,1748776261570,-228.11,0.0002379,10]
[363585580,1748776261579,-6809.80416719,0.000238,2]
[363585581,1748776261599,-1028.00984515,0.000238,2]
[363585582,1748776261743,-198.42531892,0.00016438,2]
[363585583,1748776261754,-430.0,0.00016438,2]
[363585584,1748776261764,-405.0,0.00019541,2]
[363585585,1748776261774,-405.0,0.00022541,2]
[363585586,1748776261783,-943.59582473,0.00023722,2]
[363585587,1748776328583,171.8,0.00024658,120]
[363585590,1748776455868,2000.0,0.00016726,120]
[363585593,1748776533741,471.316952,0.00013699,2]
[363585598,1748776608653,20000.0,0.000246,120]
[363585599,1748776664832,1000.0,0.00024658,120]
[363585600,1748776665919,1000.0,0.00024658,120]
[363585601,1748776672307,1000.0,0.00024658,120]
[363585602,1748776676789,549.0,0.00024658,120]
[363585608,1748777153127,-200.37489184,0.00015786,2]
[363585613,1748777238351,-1874.95040898,0.00015786,2]
[363585615,1748777247095,-2446.26392631,0.00015786,2]
[363585616,1748777247119,-170.57954348,0.00015945,2]
[363585617,1748777247142,-156.587,0.00016428,2]
[363585618,1748777247164,-979.9804,0.00016437,2]
[363585619,1748777247189,-52.06005915,0.00016437,2]
[363585621,1748777318260,1103.486916,0.0002,120]
[363585622,1748777321996,2124.67501574,0.0001,2]
[363585624,1748777374083,-1713.2854611,0.00015751,2]
[363585625,1748777374107,-181.03070093,0.00015945,2]
[363585626,1748777374129,-1050.86,0.00016428,3]
[363585627,1748777374153,-525.43,0.00016428,3]
[363585628,1748777374176,-262.72,0.00016428,3]
[363585629,1748777374200,-788.16,0.00016428,3]
[363585630,1748777374224,-247.93994085,0.00016437,2]
[363585631,1748777374247,-300.0,0.00016437,2]
[363585632,1748777374269,-470.0,0.00016438,2]
[363585633,1748777374291,-469.60915009,0.00016438,2]
[363585634,1748777374313,-430.0,0.00016438,2]
[363585635,1748777374334,-413.78658815,0.00016438,2]
[363585683,1748777432452,-156.587,0.00016428,2]
[363585685,1748777432462,-16.21341185,0.00016438,2]
[363585687,1748777432472,-430.0,0.00016438,2]
[363585689,1748777432482,-430.0,0.00016438,2]
[363585691,1748777432491,-561.15723344,0.00016438,2]
[363585693,1748777432501,-430.0,0.00016438,2]
[363585695,1748777432510,-430.0,0.00016438,2]
[363585697,1748777432521,-470.0,0.00016438,2]
[363585699,1748777432534,-430.0,0.00016438,2]
[363585701,1748777432544,-424.84787253,0.00016438,2]
[363585703,1748777432554,-430.0,0.00016438,2]
[363585705,1748777432564,-430.0,0.00016438,2]
[363585707,1748777432574,-430.0,0.00016438,2]
[363585709,1748777432584,-376.53034835,0.00016438,2]
[363585718,1748777432667,-53.46965165,0.00016438,2]
[363585720,1748777432677,-430.0,0.00016438,2]
[363585722,1748777432687,-430.0,0.00016438,2]
[363585724,1748777432698,-430.0,0.00016438,2]
[363585727,1748777432708,-430.0,0.00016438,2]
[363585730,1748777432717,-430.0,0.00016438,2]
[363585732,1748777432727,-353.95301629,0.00016438,2]
[363585734,1748777432737,-430.0,0.00016438,2]
[363585736,1748777432747,-430.0,0.00016438,2]
[363585738,1748777432757,-430.0,0.00016438,2]
[363585740,1748777432768,-430.0,0.00016438,2]
[363585742,1748777432778,-314.9831426,0.00016438,2]
[363585744,1748777432789,-430.0,0.00016438,2]
[363585747,1748777432799,-430.0,0.00016438,2]
[363585749,1748777432810,-430.0,0.00016438,2]
[363585751,1748777432820,-430.0,0.00016438,2]
[363585753,1748777432831,-430.0,0.00016438,2]
[363585755,1748777432843,-430.0,0.00016438,2]
[363585757,1748777432853,-430.0,0.00016438,2]
[363585759,1748777432863,-430.0,0.00016438,2]
[363585761,1748777432874,-540.24734751,0.00016438,2]
[363585763,1748777432883,-430.0,0.00016438,2]
[363585765,1748777432893,-430.0,0.00016438,2]
[363585767,1748777432903,-430.0,0.00016438,2]
[363585769,1748777432913,-430.0,0.00016438,2]
[363585771,1748777432923,-430.0,0.00016438,2]
[363585773,1748777432932,-430.0,0.00016438,2]
[363585775,1748777432942,-430.0,0.00016438,2]
[363585777,1748777432952,-430.0,0.00016438,2]
[363585779,1748777432962,-430.0,0.00016438,2]
[363585781,1748777432972,-430.0,0.00016438,2]
[363585783,1748777432982,-430.0,0.00016438,2]
[363585785,1748777432991,-472.11304336,0.00016438,2]
[363585787,1748777433002,-430.0,0.00016438,2]
[363585789,1748777433011,-430.0,0.00016438,2]
[363585791,1748777433022,-430.0,0.00016438,2]
[363585793,1748777433033,-430.0,0.00016438,2]
[363585795,1748777433044,-430.0,0.00016438,2]
[363585797,1748777433055,-430.0,0.00016438,2]
[363585799,1748777433065,-228.03758262,0.00016438,2]
[363585801,1748777433076,-430.0,0.00016438,2]
[363585803,1748777433087,-430.0,0.00016438,2]
[363585805,1748777433097,-430.0,0.00016438,2]
[363585807,1748777433107,-430.0,0.00016438,2]
[363585810,1748777433117,-430.0,0.00016438,2]
[363585811,1748777433130,-430.0,0.00016438,2]
[363585814,1748777433140,-430.0,0.00016438,2]
[363585815,1748777433150,-430.0,0.00016438,2]
[363585818,1748777433161,-327.7917478,0.00016438,2]
[363585819,1748777433170,-430.0,0.00016438,2]
[363585822,1748777433180,-430.0,0.00016438,2]
[363585823,1748777433190,-430.0,0.00016438,2]
[363585826,1748777433201,-430.0,0.00016438,2]
[363585828,1748777433211,-430.0,0.00016438,2]
[363585830,1748777433220,-430.0,0.00016438,2]
[363585832,1748777433230,-430.0,0.00016438,2]
[363585833,1748777433239,-430.0,0.00016438,2]
[363585836,1748777433250,-430.0,0.00016438,2]
[363585837,1748777433260,-430.0,0.00016438,2]
[363585840,1748777433270,-430.0,0.00016438,2]
[363585842,1748777433280,-430.0,0.00016438,2]
[363585843,1748777433291,-503.38458235,0.00016438,2]
[363585845,1748777433302,-430.0,0.00016438,2]
[363585847,1748777433313,-430.0,0.00016438,2]
[363585849,1748777433323,-430.0,0.00016438,2]
[363585851,1748777433334,-430.0,0.00016438,2]
[363585853,1748777433344,-430.0,0.00016438,2]
[363585855,1748777433354,-430.0,0.00016438,2]
[363585857,1748777433364,-430.0,0.00016438,2]
[363585859,1748777433376,-430.0,0.00016438,2]
[363585861,1748777433387,-430.0,0.00016438,2]
[363585863,1748777433398,-430.0,0.00016438,2]
[363585865,1748777433407,-430.0,0.00016438,2]
[363585867,1748777433418,-430.0,0.00016438,2]
[363585869,1748777433428,-578.48803937,0.00016438,2]
[363585871,1748777433438,-361.23847083,0.00016438,2]
[363585874,1748777433449,-430.0,0.00016438,2]
[363585876,1748777433460,-430.0,0.00016438,2]
[363585878,1748777433470,-430.0,0.00016438,2]
[363585880,1748777433480,-430.0,0.00016438,2]
[363585882,1748777433490,-430.0,0.00016438,2]
[363585884,1748777433500,-175.52446864,0.00016438,2]
[363585885,1748777433510,-430.0,0.00016438,2]
[363585887,1748777433520,-430.0,0.00016438,2]
[363585889,1748777433535,-430.0,0.00016438,2]
[363585892,1748777433546,-430.0,0.00016438,2]
[363585894,1748777433557,-430.0,0.00016438,2]
[363585896,1748777433569,-430.0,0.00016438,2]
[363585898,1748777433579,-430.0,0.00016438,2]
[363585900,1748777433590,-430.0,0.00016438,2]
[363585902,1748777433600,-220.0,0.00016438,2]
[363585904,1748777433611,-432.85789592,0.00016438,2]
[363585906,1748777433621,-252.08239734,0.00016438,2]
[363585908,1748777433631,-430.0,0.00016438,2]
[363585910,1748777433641,-430.0,0.00016438,2]
[363585912,1748777433652,-430.0,0.00016438,2]
[363585914,1748777433662,-430.0,0.00016438,2]
[363585916,1748777433672,-430.0,0.00016438,2]
[363585918,1748777433682,-430.0,0.00016438,2]
[363585920,1748777433692,-425.82919193,0.00016438,2]
[363585922,1748777433702,-430.0,0.00016438,2]
[363585924,1748777433713,-430.0,0.00016438,2]
[363585926,1748777433722,-430.0,0.00016438,2]
[363585928,1748777433733,-430.0,0.00016438,2]
[363585930,1748777433742,-430.0,0.00016438,2]
[363585932,1748777433752,-430.0,0.00016438,2]
[363585934,1748777433762,-430.0,0.00016438,2]
[363585936,1748777433772,-430.0,0.00016438,2]
[363585938,1748777433782,-430.0,0.00016438,2]
[363585940,1748777433793,-430.0,0.00016438,2]
[363585942,1748777433803,-430.0,0.00016438,2]
[363585944,1748777433812,-430.0,0.00016438,2]
[363585946,1748777433822,-425.58119401,0.00016438,2]
[363585948,1748777433831,-430.0,0.00016438,2]
[363585950,1748777433841,-430.0,0.00016438,2]
[363585952,1748777433850,-430.0,0.00016438,2]
[363585954,1748777433860,-430.0,0.00016438,2]
[363585956,1748777433870,-410.0,0.00016438,2]
[363585958,1748777433880,-430.0,0.00016438,2]
[363585960,1748777433890,-430.0,0.00016438,2]
[363585962,1748777433900,-430.0,0.00016438,2]
[363585964,1748777433910,-560.0,0.00016438,2]
[363585966,1748777433920,-430.0,0.00016438,2]
[363585968,1748777433930,-430.0,0.00016438,2]
[363585970,1748777433939,-430.0,0.00016438,2]
[363585972,1748777433950,-430.0,0.00016438,2]
[363585974,1748777433959,-430.0,0.00016438,2]
[363585976,1748777433969,-430.0,0.00016438,2]
[363585977,1748777433979,-430.0,0.00016438,2]
[363585979,1748777433989,-430.0,0.00016438,2]
[363585981,1748777433999,-430.0,0.00016438,2]
[363585982,1748777434009,-430.0,0.00016438,2]
[363585984,1748777434018,-430.0,0.00016438,2]
[363585985,1748777434029,-430.0,0.00016438,2]
[363585987,1748777434039,-430.0,0.00016438,2]
[363585989,1748777434049,-430.0,0.00016438,2]
[363585991,1748777434059,-430.0,0.00016438,2]
[363585993,1748777434068,-430.0,0.00016438,2]
[363585995,1748777434077,-430.0,0.00016438,2]
[363585997,1748777434087,-430.0,0.00016438,2]
[363585999,1748777434096,-430.0,0.00016438,2]
[363586001,1748777434106,-430.0,0.00016438,2]
[363586003,1748777434115,-430.0,0.00016438,2]
[363586004,1748777434126,-430.0,0.00016438,2]
[363586006,1748777434135,-430.0,0.00016438,2]
[363586008,1748777434144,-430.0,0.00016438,2]
[363586010,1748777434154,-503.55016483,0.00016438,2]
[363586012,1748777434164,-430.0,0.00016438,2]
[363586014,1748777434173,-430.0,0.00016438,2]
[363586016,1748777434184,-430.0,0.00016438,2]
[363586017,1748777434194,-430.0,0.00016438,2]
[363586018,1748777434204,-430.0,0.00016438,2]
[363586019,1748777434214,-430.0,0.00016438,2]
[363586020,1748777434223,-430.0,0.00016438,2]
[363586021,1748777434234,-431.06439751,0.00016438,2]
[363586022,1748777434244,-430.0,0.00016438,2]
[363586023,1748777434253,-430.0,0.00016438,2]
[363586024,1748777434263,-430.0,0.00016438,2]
[363586025,1748777434273,-200.35583308,0.00016438,2]
[363586026,1748777434282,-430.0,0.00016438,2]
[363586027,1748777434292,-430.0,0.00016438,2]
[363586028,1748777434302,-430.0,0.00016438,2]
[363586029,1748777434311,-430.0,0.00016438,2]
[363586030,1748777434321,-430.0,0.00016438,2]
[363586031,1748777434331,-493.74444198,0.00016438,2]
[363586032,1748777434341,-535.88654576,0.00016438,2]
[363586033,1748777434351,-430.0,0.00016438,2]
[363586034,1748777434360,-430.0,0.00016438,2]
[363586035,1748777434371,-430.0,0.00016438,2]
[363586036,1748777434381,-430.0,0.00016438,2]
[363586037,1748777434391,-430.0,0.00016438,2]
[363586038,1748777434402,-430.0,0.00016438,2]
[363586039,1748777434412,-430.0,0.00016438,2]
[363586040,1748777434422,-430.0,0.00016438,2]
[363586041,1748777434432,-430.0,0.00016438,2]
[363586042,1748777434442,-430.0,0.00016438,2]
[363586043,1748777434452,-430.0,0.00016438,2]
[363586044,1748777434462,-430.0,0.00016438,2]
[363586045,1748777434472,-430.0,0.00016438,2]
[363586046,1748777434482,-430.0,0.00016438,2]
[363586047,1748777434492,-430.0,0.00016438,2]
[363586048,1748777434501,-433.86283192,0.00016438,2]
[363586049,1748777434511,-224.20281402,0.00016438,2]
[363586050,1748777434520,-430.0,0.00016438,2]
[363586051,1748777434532,-430.0,0.00016438,2]
[363586052,1748777434542,-430.0,0.00016438,2]
[363586053,1748777434552,-430.0,0.00016438,2]
[363586054,1748777434562,-430.0,0.00016438,2]
[363586055,1748777434573,-430.0,0.00016438,2]
[363586056,1748777434583,-366.92895119,0.00016438,2]
[363586057,1748777434593,-430.0,0.00016438,2]
[363586058,1748777434603,-430.0,0.00016438,2]
[363586059,1748777434612,-430.0,0.00016438,2]
[363586060,1748777434623,-430.0,0.00016438,2]
[363586061,1748777434632,-430.0,0.00016438,2]
[363586062,1748777434642,-450.46109542,0.00016438,2]
[363586063,1748777434652,-430.0,0.00016438,2]
[363586064,1748777434661,-430.0,0.00016438,2]
[363586065,1748777434671,-430.0,0.00016438,2]
[363586066,1748777434680,-430.0,0.00016438,2]
[363586067,1748777434690,-430.0,0.00016438,2]
[363586068,1748777434700,-500.0,0.00016438,2]
[363586069,1748777434710,-430.0,0.00016438,2]
[363586070,1748777434720,-430.0,0.00016438,2]
[363586071,1748777434729,-430.0,0.00016438,2]
[363586072,1748777434739,-430.0,0.00016438,2]
[363586073,1748777434749,-430.0,0.00016438,2]
[363586074,1748777434760,-430.0,0.00016438,2]
[363586075,1748777434769,-430.0,0.00016438,2]
[363586076,1748777434778,-430.0,0.00016438,2]
[363586077,1748777434788,-432.71153253,0.00016438,2]
[363586078,1748777434798,-430.0,0.00016438,2]
[363586079,1748777434808,-430.0,0.00016438,2]
[363586080,1748777434817,-430.0,0.00016438,2]
[363586081,1748777434827,-430.0,0.00016438,2]
[363586082,1748777434941,-430.0,0.00016438,2]
[363586083,1748777434951,-430.0,0.00016438,2]
[363586084,1748777434961,-430.0,0.00016438,2]
[363586085,1748777434971,-430.0,0.00016438,2]
[363586086,1748777434981,-430.8740387,0.00016438,2]
[363586087,1748777434991,-1240.01,0.00016438,2]
[363586088,1748777435001,-430.0,0.00016438,2]
[363586089,1748777435011,-543.86578855,0.00016438,2]
[363586090,1748777435021,-430.0,0.00016438,2]
[363586091,1748777435031,-430.0,0.00016438,2]
[363586092,1748777435040,-430.0,0.00016438,2]
[363586093,1748777435050,-492.83,0.00016438,2]
[363586094,1748777435060,-430.0,0.00016438,2]
[363586095,1748777435070,-294.53065617,0.00016438,2]
[363586096,1748777435080,-430.0,0.00016438,2]
[363586097,1748777435089,-438.11409679,0.00016438,2]
[363586098,1748777435099,-430.0,0.00016438,2]
[363586099,1748777435109,-3331.44,0.00016438,2]
[363586100,1748777435118,-430.0,0.00016438,2]
[363586101,1748777435128,-430.0,0.00016438,2]
[363586102,1748777435138,-2976.59,0.00016438,2]
[363586103,1748777435148,-430.0,0.00016438,2]
[363586104,1748777435158,-430.0,0.00016438,2]
[363586105,1748777435167,-430.0,0.00016438,2]
[363586106,1748777435177,-430.0,0.00016438,2]
[363586107,1748777435187,-430.0,0.00016438,2]
[363586108,1748777435196,-430.0,0.00016438,2]
[363586109,1748777435207,-516.67304661,0.00016438,2]
[363586110,1748777435217,-430.0,0.00016438,2]
[363586111,1748777435226,-430.0,0.00016438,2]
[363586112,1748777435236,-430.0,0.00016438,2]
[363586113,1748777435246,-430.0,0.00016438,2]
[363586114,1748777435256,-430.0,0.00016438,2]
[363586115,1748777435266,-564.38,0.00016438,2]
[363586116,1748777435275,-430.0,0.00016438,2]
[363586117,1748777435285,-451.56501667,0.00016438,2]
[363586118,1748777435295,-1884.21,0.00016438,2]
[363586119,1748777435305,-430.0,0.00016438,2]
[363586120,1748777435315,-430.0,0.00016438,2]
[363586121,1748777435324,-430.0,0.00016438,2]
[363586122,1748777435334,-430.0,0.00016438,2]
[363586123,1748777435344,-387.51861248,0.00016438,2]
[363586124,1748777435353,-430.0,0.00016438,2]
[363586125,1748777435363,-470.0,0.00016438,2]
[363586126,1748777435373,-430.0,0.00016438,2]
[363586127,1748777435383,-430.0,0.00016438,2]
[363586128,1748777435392,-1092.73,0.00016438,2]
[363586129,1748777435402,-430.0,0.00016438,2]
[363586130,1748777435412,-2299.95,0.00016438,2]
[363586131,1748777435422,-450.1590613,0.00016438,2]
[363586132,1748777435432,-430.0,0.00016438,2]
[363586133,1748777435442,-430.0,0.00016438,2]
[363586134,1748777435451,-430.0,0.00016438,2]
[363586135,1748777435461,-430.0,0.00016438,2]
[363586136,1748777435471,-210.12187209,0.00016438,2]
[363586137,1748777435480,-430.00129583,0.00016438,2]
[363586138,1748777435490,-430.0,0.00016438,2]
[363586139,1748777435499,-430.0,0.00016438,2]
[363586140,1748777435509,-430.0,0.00016438,2]
[363586141,1748777435519,-430.0,0.00016438,2]
[363586142,1748777435532,-430.0,0.00016438,2]
[363586143,1748777435542,-430.0,0.00016438,2]
[363586144,1748777435552,-430.0,0.00016438,2]
[363586145,1748777435562,-503.49133586,0.00016438,2]
[363586146,1748777435572,-722.57,0.00016438,2]
[363586147,1748777435582,-430.0,0.00016438,2]
[363586148,1748777435592,-430.0,0.00016438,2]
[363586149,1748777435602,-430.0,0.00016438,2]
[363586150,1748777435613,-430.0,0.00016438,2]
[363586151,1748777435623,-1226.7,0.00016438,2]
[363586152,1748777435633,-2672.42,0.00016438,2]
[363586153,1748777435643,-430.0,0.00016438,2]
[363586154,1748777435654,-430.0,0.00016438,2]
[363586155,1748777435664,-430.0,0.00016438,2]
[363586156,1748777435674,-430.0,0.00016438,2]
[363586157,1748777435685,-430.0,0.00016438,2]
[363586158,1748777435695,-430.0,0.00016438,2]
[363586159,1748777435705,-806.49,0.00016438,2]
[363586160,1748777435714,-371.07216283,0.00016438,2]
[363586161,1748777435723,-430.0,0.00016438,2]
[363586162,1748777435734,-430.0,0.00016438,2]
[363586163,1748777435743,-430.0,0.00016438,2]
[363586164,1748777435753,-430.0,0.00016438,2]
[363586165,1748777435763,-430.0,0.00016438,2]
[363586166,1748777435772,-430.0,0.00016438,2]
[363586167,1748777435782,-430.0,0.00016438,2]
[363586168,1748777435792,-430.0,0.00016438,2]
[363586169,1748777435801,-430.0,0.00016438,2]
[363586170,1748777435811,-430.0,0.00016438,2]
[363586171,1748777435820,-430.0,0.00016438,2]
[363586172,1748777435830,-430.0,0.00016438,2]
[363586173,1748777435839,-430.0,0.00016438,2]
[363586174,1748777435849,-430.0,0.00016438,2]
[363586175,1748777435859,-430.0,0.00016438,2]
[363586176,1748777435868,-500.0,0.00016438,2]
[363586177,1748777435879,-430.0,0.00016438,2]
[363586178,1748777435889,-430.0,0.00016438,2]
[363586179,1748777435898,-430.0,0.00016438,2]
[363586180,1748777435908,-476.38,0.00016438,2]
[363586181,1748777435918,-430.0,0.00016438,2]
[363586182,1748777435927,-430.0,0.00016438,2]
[363586183,1748777435937,-430.0,0.00016438,2]
[363586184,1748777435948,-457.31,0.00016438,2]
[363586185,1748777435957,-430.0,0.00016438,2]
[363586186,1748777435967,-430.0,0.00016438,2]
[363586187,1748777435976,-430.0,0.00016438,2]
[363586188,1748777435986,-478.3,0.00016438,2]
[363586189,1748777435995,-430.0,0.00016438,2]
[363586190,1748777436005,-430.0,0.00016438,2]
[363586191,1748777436015,-430.0,0.00016438,2]
[363586192,1748777436024,-430.0,0.00016438,2]
[363586193,1748777436033,-430.0,0.00016438,2]
[363586194,1748777436044,-430.0,0.00016438,2]
[363586195,1748777436054,-430.0,0.00016438,2]
[363586196,1748777436064,-430.0,0.00016438,2]
[363586197,1748777436074,-430.0,0.00016438,2]
[363586198,1748777436083,-430.0,0.00016438,2]
[363586199,1748777436092,-1252.18,0.00016438,2]
[363586200,1748777436101,-430.0,0.00016438,2]
[363586201,1748777436115,-430.0,0.00016438,2]
[363586202,1748777436126,-430.0,0.00016438,2]
[363586203,1748777436135,-748.12,0.00016438,2]
[363586204,1748777436145,-430.0,0.00016438,2]
[363586205,1748777436155,-430.0,0.00016438,2]
[363586206,1748777436164,-430.0,0.00016438,2]
[363586207,1748777436174,-430.0,0.00016438,2]
[363586208,1748777436184,-430.0,0.00016438,2]
[363586209,1748777436195,-400.0,0.00016438,2]
[363586210,1748777436205,-430.0,0.00016438,2]
[363586211,1748777436214,-430.0,0.00016438,2]
[363586212,1748777436224,-1768.34,0.00016438,2]
[363586213,1748777436234,-430.0,0.00016438,2]
[363586214,1748777436243,-430.0,0.00016438,2]
[363586215,1748777436253,-430.0,0.00016438,2]
[363586216,1748777436263,-430.0,0.00016438,2]
[363586217,1748777436273,-430.0,0.00016438,2]
[363586218,1748777436282,-476.87,0.00016438,2]
[363586219,1748777436292,-2721.71,0.00016438,2]
[363586220,1748777436303,-430.0,0.00016438,2]
[363586221,1748777436312,-430.0,0.00016438,2]
[363586222,1748777436322,-430.0,0.00016438,2]
[363586223,1748777436331,-559.53535596,0.00016438,2]
[363586224,1748777436341,-430.0,0.00016438,2]
[363586225,1748777436351,-430.0,0.00016438,2]
[363586226,1748777436360,-430.0,0.00016438,2]
[363586227,1748777436370,-433.70165519,0.00016438,2]
[363586228,1748777436380,-548.26,0.00016438,2]
[363586229,1748777436390,-557.94,0.00016438,2]
[363586230,1748777436400,-1242.67,0.00016438,2]
[363586231,1748777436411,-430.0,0.00016438,2]
[363586232,1748777436420,-430.0,0.00016438,2]
[363586233,1748777436431,-444.76,0.00016438,2]
[363586234,1748777436441,-430.0,0.00016438,2]
[363586235,1748777436451,-430.0,0.00016438,2]
[363586236,1748777436461,-492.01,0.00016438,2]
[363586237,1748777436471,-430.0,0.00016438,2]
[363586238,1748777436482,-430.0,0.00016438,2]
[363586239,1748777436492,-2451.33,0.00016438,2]
[363586240,1748777436502,-430.0,0.00016438,2]
[363586241,1748777436512,-430.0,0.00016438,2]
[363586242,1748777436522,-430.0,0.00016438,2]
[363586243,1748777436536,-430.0,0.00016438,2]
[363586244,1748777436545,-430.0,0.00016438,2]
[363586245,1748777436555,-430.0,0.00016438,2]
[363586246,1748777436565,-430.0,0.00016438,2]
[363586247,1748777436576,-555.41,0.00016438,2]
[363586248,1748777436586,-430.0,0.00016438,2]
[363586249,1748777436596,-2910.97,0.00016438,2]
[363586250,1748777436608,-878.25,0.00016438,2]
[363586251,1748777436619,-430.0,0.00016438,2]
[363586252,1748777436629,-430.0,0.00016438,2]
[363586253,1748777436639,-430.0,0.00016438,2]
[363586254,1748777436650,-500.0,0.00016438,2]
[363586255,1748777436661,-5703.9531436,0.00016438,2]
[363586256,1748777436672,-290.826,0.00016483,2]
[363586257,1748777436682,-487.79208488,0.00016711,2]
[363586258,1748777436692,-500.0,0.00016711,2]
[363586259,1748777436703,-500.0,0.00016711,2]
[363586260,1748777436714,-500.0,0.00016711,2]
[363586261,1748777436724,-500.0,0.00016711,2]